[Event "10th Cherry Blossom Classic 2023"]
[Site "Dulles"]
[Date "2023.05.25"]
[Round "1.7"]
[White "Kantor, Gergely"]
[Black "Prabhu, Naveen"]
[Result "1-0"]
[ECO "D38"]
[WhiteElo "2535"]
[BlackElo "2138"]
[Annotator "TA"]
[PlyCount "59"]
[EventDate "2023.05.24"]
[EventType "swiss"]
[EventCountry "USA"]
[SourceTitle "playchess.com"]
[Source "ChessBase"]
[SourceQuality "1"]
[TimeControl "5400+30"]

{[%evp 11,59,18,12,15,32,31,41,3,6,0,13,19,29,30,62,67,71,70,75,69,220,219,206,218,212,233,272,283,286,303,282,279,561,555,584,575,570,577,569,565,716,728,682,652,675,647,1156,1138,1038,1026]} 1. d4 {[%emt 0:00:08]} Nf6 {[%emt 0:00:07]} 2. c4 {[%emt 0:00:04]} e6 {[%emt 0:00:08]} 3. Nf3 {[%emt 0:00:03]} d5 {[%emt 0:00:10]} 4. Nc3 {[%emt 0:00:08]} Bb4 {[%emt 0:00:32]} 5. Qa4+ {[%emt 0:01:26]} Nc6 {[%emt 0:00:08]} 6. e3 {[%emt 0:00:06]} O-O {[%emt 0:00:32]} 7. Qc2 {[%emt 0:00:32] D38: Queen's Gambit Declined: Ragozin Defence (4 Nf3 Bb4).} dxc4 {[%emt 0:01:00]} 8. Bxc4 {[%emt 0:02:48]} Bd6 {[%emt 0:01:34]} 9. O-O {[%emt 0:00:57] White is slightly better.} e5 {[%emt 0:03:55]} 10. h3 {[%emt 0:05:27]} exd4 {[%emt 0:12:53]} 11. exd4 {[%emt 0:01:25]} h6 {[%emt 0:00:14]} 12. Re1 {[%emt 0:07:36] [#]} Kh8 $146 {[%emt 0:17:10]} ({Predecessor:} 12... Ne7 13. Ne5 c6 14. Qb3 Ned5 15. Bd2 Qb6 16. Nxd5 cxd5 17. Bxd5 Nxd5 18. Qxd5 Be6 {1-0 Urazayev,A (2458)-Abdilkhair,A (2278) KAZ-ch Semey 2022 (10)}) 13. a3 {[%emt 0:07:03]} a6 {[%emt 0:08:21]} 14. b4 {[%emt 0:14:50]} b6 {[%emt 0:09:41]} 15. Qa2 {[%emt 0:07:35] White is more active.} Kg8 $2 {[%emt 0:04:54] Black cannot hold the game after this.} (15... Bb7 $14) 16. Ne5 $18 {[%emt 0:02:25]} Bxe5 {[%emt 0:03:52]} 17. dxe5 {[%emt 0:00:33]} Nh7 {[%emt 0:08:49]} 18. Bd5 {[%emt 0:05:53]} Qe8 {[%emt 0:05:53]} 19. Qc4 {[%emt 0:02:14]} Bd7 {[%emt 0:02:53]} 20. Bb2 {[%emt 0:14:14]} b5 {[%emt 0:01:14]} 21. Qc5 {[%emt 0:00:50]} Rc8 $2 {[%emt 0:03:26]} (21... Nd8 {is a better defense.} 22. Bxa8 Ne6) 22. Ne4 {[%emt 0:02:38] White is clearly winning.} Nd8 {[%emt 0:02:33] [#] Black is weak on the dark squares} 23. Nf6+ $1 {[%emt 0:11:31][%mdl 512]} gxf6 {[%emt 0:01:08]} 24. exf6 {[%emt 0:00:03]} Ne6 {[%emt 0:03:04]} 25. Qc1 {[%emt 0:00:34]} Nhg5 {[%emt 0:03:25]} 26. h4 {[%emt 0:00:15][%cal Bh3h4,Bh4g5][%mdl 32]} Kh8 {[%emt 0:00:33]} 27. hxg5 {[%emt 0:00:29][%cal Oe1e6] Rxe6! is the strong threat.} Rg8 {[%emt 0:00:55]} 28. f4 {[%emt 0:00:47] Hoping for g6.} Qf8 {[%emt 0:00:33]} 29. Bxe6 {[%emt 0:00:26]} Bxe6 {[%emt 0:00:08] [#]} 30. Rxe6 $1 {[%emt 0:00:08][%mdl 576] Remove Defender, Promotion. Artfully played by Kantor.   Weighted Error Value: White=0.02 (flawless) /Black=0.31} 1-0

[Event "10th Cherry Blossom Classic 2023"]
[Site "Dulles"]
[Date "2023.05.25"]
[Round "1.8"]
[White "Girsh, Daniel"]
[Black "Druska, Juraj"]
[Result "0-1"]
[ECO "C11"]
[WhiteElo "2123"]
[BlackElo "2496"]
[Annotator "TA"]
[PlyCount "102"]
[EventDate "2023.05.24"]
[EventType "swiss"]
[EventCountry "USA"]
[SourceTitle "playchess.com"]
[Source "ChessBase"]
[SourceQuality "1"]
[TimeControl "5400+30"]

{[%evp 17,102,8,12,0,0,0,0,0,11,0,0,0,0,0,31,18,99,6,19,7,41,-15,-17,-14,-16,-20,-14,-3,0,-6,-3,-6,0,0,0,-65,-65,-80,0,0,0,0,0,0,0,0,0,-8,-8,-154,-142,-152,-85,-543,-543,-701,-814,-914,-766,-868,-866,-668,-630,-927,-755,-435,-399,-1038,-1038,-1031,-1031,-8870,-9312,-9542,-8455,-8395,-8372,-8043,-8043,-7367,-7381,-5414,-6822,-6095,-5443,-1930,-1787]} 1. e4 {[%emt 0:00:02]} e6 {[%emt 0:09:26]} 2. d4 {[%emt 0:00:45]} d5 {[%emt 0:00:06]} 3. Nc3 {[%emt 0:00:48]} Nf6 {[%emt 0:00:10]} 4. e5 {[%emt 0:00:07]} Nfd7 {[%emt 0:00:05]} 5. f4 {[%emt 0:00:07]} c5 {[%emt 0:00:05]} 6. Nf3 {[%emt 0:00:06]} Nc6 {[%emt 0:00:03]} 7. Be3 {[%emt 0:00:08]} a6 {[%emt 0:00:05]} 8. Qd2 {[%emt 0:00:12]} b5 {[%emt 0:00:06]} 9. dxc5 {[%emt 0:00:05]} Bxc5 {[%emt 0:00:07]} 10. Bd3 {[%emt 0:00:05] C11: French: Classical System: 4 e5 and 4 Bg5 dxe4.} Qb6 {[%emt 0:00:12]} ({Resist} 10... d4 11. Nxd4 Bxd4 12. Bxd4 $14) 11. Bf2 {[%emt 0:00:07]} h6 {[%emt 0:00:53]} 12. O-O {[%emt 0:01:42] The position is equal.} Bb7 {[%emt 0:02:47]} 13. Rae1 {[%emt 0:13:28]} O-O-O {[%emt 0:11:46][%cal Be8c8,Bc8c7,Bc7b6,Bb6a7][%mdl 32] [#]} 14. Bxc5 $146 {[%emt 0:01:03]} ({Predecessor:} 14. Nd1 Rdg8 15. Kh1 Bxf2 16. Nxf2 Kb8 17. c3 Re8 18. Bc2 Rd8 19. a4 b4 20. Nd4 {½-½ Akash,G (2424)-Das,S (2425) Goa op 1st Taleigao 2018 (10)}) 14... Nxc5 {[%emt 0:00:47]} 15. Qf2 {[%emt 0:00:42]} g6 {[%emt 0:06:23]} 16. a3 {[%emt 0:01:53]} b4 {[%emt 0:11:04]} (16... Kc7 $11) 17. Nb1 {[%emt 0:16:18]} (17. axb4 $16 Qxb4 18. Na2 Nxd3 19. cxd3 (19. Nxb4 Nxf2 20. Nxc6 Nh3+ 21. gxh3 Bxc6 $11)) 17... Kc7 $11 {[%emt 0:04:40]} 18. Nbd2 {[%emt 0:07:09]} Rc8 {[%emt 0:13:07]} 19. Be2 {[%emt 0:11:13]} ({Better is} 19. Ra1 $14) 19... bxa3 {[%emt 0:15:48]} 20. bxa3 {[%emt 0:03:00]} Ne4 {[%emt 0:00:07][%mdl 64] Pin} 21. Qxb6+ {[%emt 0:07:32]} Kxb6 {[%emt 0:00:01]} 22. c4 {[%emt 0:01:56]} Nxd2 {[%emt 0:08:29]} 23. Nxd2 {[%emt 0:00:11]} Nd4 {[%emt 0:00:06]} 24. Bd3 {[%emt 0:01:40]} Ka7 {[%emt 0:00:06]} 25. Rc1 {[%emt 0:05:43]} Rhd8 {[%emt 0:01:09]} 26. Kf2 {[%emt 0:03:58]} (26. cxd5 $11 Bxd5 27. Kf2) 26... dxc4 $1 $15 {[%emt 0:01:15]} 27. Rxc4 {[%emt 0:03:45] [#]} Nb3 {[%emt 0:03:59] Prevents Rfc1} 28. Rxc8 {[%emt 0:03:45]} Bxc8 {[%emt 0:00:05]} 29. Nxb3 {[%emt 0:02:24]} Rxd3 $11 {[%emt 0:00:02][%mdl 4096] Endgame KRB-KRN} 30. Rb1 {[%emt 0:00:09]} Rc3 {[%emt 0:00:05]} 31. Rc1 {[%emt 0:05:12]} Rxc1 {[%emt 0:00:02]} 32. Nxc1 {[%emt 0:00:01] KB-KN} Kb6 {[%emt 0:00:05] With the idea ...Kb5.} 33. Ne2 {[%emt 0:01:25]} (33. Ke3 $11 {keeps the balance.}) 33... Bb7 $17 {[%emt 0:01:08]} 34. g4 {[%emt 0:00:05]} Kb5 $1 {[%emt 0:00:26] Threatens to win with ...Ka4.} 35. f5 $2 {[%emt 0:02:56][%mdl 8192] White does not recover from this.} gxf5 $19 {[%emt 0:07:17]} (35... exf5 36. gxf5 gxf5 37. Nd4+ Ka4 38. Nxf5 $17) 36. gxf5 {[%emt 0:00:02]} exf5 {[%emt 0:00:03]} 37. Nd4+ {[%emt 0:00:54]} Ka4 $1 {[%emt 0:00:06]} 38. Nxf5 {[%emt 0:00:04]} h5 $1 {[%emt 0:00:37][%cal Bh6h5,Bh5h4,Bh4h3][%mdl 32]} ({Worse is} 38... Kxa3 39. Nxh6 Kb4 40. Nxf7 $11) 39. Ke3 {[%emt 0:03:00]} Kxa3 {[%emt 0:00:33] Strongly threatening ...Bc8.} 40. Kd4 {[%emt 0:01:02] [#]} Bc8 $1 {[%emt 0:00:43]} 41. Ne7 {[%emt 0:01:41]} Bd7 {[%emt 0:03:57] And now ...Kb3 would win.} 42. Kc3 {[%emt 0:00:14] [#]} (42. e6 fxe6 43. Kc3) 42... h4 $1 {[%emt 0:01:18] Black is clearly winning.} 43. Nd5 {[%emt 0:01:01]} a5 {[%emt 0:00:30][%cal Ba6a5,Ba5a4][%mdl 32]} 44. Ne3 {[%emt 0:01:45]} Be6 {[%emt 0:01:20]} 45. Ng2 {[%emt 0:00:08]} h3 {[%emt 0:00:15]} 46. Ne3 {[%emt 0:01:24]} Ka4 {[%emt 0:00:30] aiming for ...Kb5.} 47. Nc2 {[%emt 0:00:47]} Kb5 {[%emt 0:00:18]} 48. Kd4 {[%emt 0:01:11]} a4 {[%emt 0:00:13]} 49. Kc3 {[%emt 0:00:28]} Kc5 {[%emt 0:00:11]} 50. Na3 {[%emt 0:00:27]} Bb3 {[%emt 0:00:40]} 51. Nb1 {[%emt 0:00:32]} Kd5 {[%emt 0:00:31] Weighted Error Value: White=0.73/Black=0.16 (very precise)} 0-1

[Event "10th Cherry Blossom Classic 2023"]
[Site "Dulles"]
[Date "2023.05.25"]
[Round "1.9"]
[White "Bora, Safal"]
[Black "Altman, Joshua"]
[Result "1-0"]
[ECO "C00"]
[WhiteElo "2462"]
[BlackElo "2120"]
[Annotator "TA"]
[PlyCount "73"]
[EventDate "2023.05.24"]
[EventType "swiss"]
[EventCountry "USA"]
[SourceTitle "playchess.com"]
[Source "ChessBase"]
[SourceQuality "1"]
[TimeControl "5400+30"]

{[%evp 17,73,-5,31,24,26,32,29,16,62,50,52,54,103,91,158,152,153,119,193,196,244,235,318,292,425,430,477,320,296,335,412,412,577,570,570,554,586,588,857,852,1012,939,1706,1685,1630,1620,29986,29987,29987,29988,6720,5955,5902,5822,29997,29998,29998,29999]} 1. e4 {[%emt 0:00:18]} e6 {[%emt 0:00:02]} 2. d3 {[%emt 0:00:21]} d5 {[%emt 0:00:07]} 3. Qe2 {[%emt 0:00:18]} Nf6 {[%emt 0:07:10]} 4. Nf3 {[%emt 0:00:42]} Be7 {[%emt 0:00:51]} 5. g3 {[%emt 0:00:30]} c5 {[%emt 0:01:39]} 6. Bg2 {[%emt 0:00:25]} Nc6 {[%emt 0:00:59]} 7. O-O {[%emt 0:00:36]} b6 {[%emt 0:09:51]} 8. e5 {[%emt 0:01:41]} Nd7 {[%emt 0:00:14]} 9. c4 {[%emt 0:00:20]} d4 {[%emt 0:02:32]} 10. Ne1 {[%emt 0:01:31] C00: French: Unusual White 2nd moves.} Bb7 {[%emt 0:02:03]} (10... Ndxe5 $2 11. f4 $18) 11. f4 {[%emt 0:00:18]} Qc7 {[%emt 0:01:15]} 12. Nd2 {[%emt 0:00:49] White has an edge.} h5 {[%emt 0:05:53]} (12... Rb8 $11) 13. h4 {[%emt 0:15:04] [#]} g6 $146 {[%emt 0:02:25]} ({Predecessor:} 13... O-O-O 14. Nef3 Kb8 15. Ne4 Rde8 16. Bd2 Ka8 17. a3 f6 18. b4 fxe5 19. b5 Na5 20. Bxa5 bxa5 21. Nxe5 Nxe5 22. fxe5 Qxe5 {½-½ Gabrielian,A (2460)-Yudin,S (2469) Almaty Academy IM2 12 2022 (6)}) 14. Ne4 {[%emt 0:00:42]} O-O-O {[%emt 0:04:56]} (14... a6 $14) 15. Bd2 {[%emt 0:07:39]} Rdf8 {[%emt 0:11:54]} ({Better is} 15... Ndb8) 16. a3 $16 {[%emt 0:02:31] White is more active.} Kb8 {[%emt 0:09:44]} 17. Nc2 {[%emt 0:03:08]} a6 {[%emt 0:10:09]} (17... f5 $16) 18. b4 $18 {[%emt 0:01:01]} Rd8 {[%emt 0:07:54]} (18... f5 $142) 19. Rab1 {[%emt 0:01:13]} Na7 {[%emt 0:03:45]} 20. Rb2 {[%emt 0:01:54]} Nc8 {[%emt 0:03:01]} (20... Nc6 $142 21. Rfb1 cxb4 22. axb4 (22. Nxb4 Ka7 $16) 22... Na7) 21. Rfb1 {[%emt 0:00:38]} Ka7 {[%emt 0:04:40]} 22. Ne1 {[%emt 0:06:18][%cal Bc2e1,Be1f3,Bf3g5,Bg5e4][%mdl 32]} Rhf8 {[%emt 0:02:49]} 23. Nf3 {[%emt 0:00:36]} Kb8 {[%emt 0:02:02]} 24. Nfg5 {[%emt 0:01:11]} Ka7 {[%emt 0:01:09]} (24... Qc6 $142 25. bxc5 Nxc5 26. Nxc5 {[%mdl 64] Remove Defender} Qxc5) 25. bxc5 {[%emt 0:10:09]} Nxc5 {[%emt 0:02:06]} 26. Nxc5 {[%emt 0:00:19]} Bxc5 {[%emt 0:00:37]} 27. a4 {[%emt 0:00:43][%cal Ba3a4,Ba4a5][%mdl 32]} Bc6 {[%emt 0:03:31] [#]} 28. a5 $1 {[%emt 0:01:07][%mdl 512]} Rd7 {[%emt 0:00:30]} (28... Bxg2 29. Qxg2) 29. Ne4 {[%emt 0:01:53]} Ba8 {[%emt 0:00:39]} 30. axb6+ {[%emt 0:05:58]} Bxb6 {[%emt 0:00:10] [#]} 31. c5 $1 {[%emt 0:00:58][%mdl 512]} Ba5 {[%emt 0:00:25]} (31... Bc6 32. cxb6+) 32. Bxa5 {[%emt 0:01:13]} Qxa5 {[%emt 0:00:05]} 33. Ra2 {[%emt 0:00:17]} Qc7 {[%emt 0:00:18] [#]} 34. Rxa6+ $3 {[%emt 0:00:50][%mdl 576] Decoy} Kxa6 {[%emt 0:00:03]} 35. Ra1+ {[%emt 0:00:10][%mdl 64] Skewer} Kb5 {[%emt 0:01:32]} 36. Qb2+ {[%emt 0:00:33]} Kc6 {[%emt 0:00:03]} 37. Nd6+ {[%emt 0:00:14] Magnificent play by Bora!   Weighted Error Value: White=0.11 (very precise) /Black=1.05} 1-0

[Event "10th Cherry Blossom Classic 2023"]
[Site "Dulles"]
[Date "2023.05.25"]
[Round "1.10"]
[White "Kanli, Alperen"]
[Black "Hilby, Craig"]
[Result "1/2-1/2"]
[ECO "D33"]
[WhiteElo "2111"]
[BlackElo "2401"]
[Annotator "TA"]
[PlyCount "46"]
[EventDate "2023.05.24"]
[EventType "swiss"]
[EventCountry "USA"]
[SourceTitle "playchess.com"]
[Source "ChessBase"]
[SourceQuality "1"]
[TimeControl "5400+30"]

{[%evp 16,46,25,19,29,19,50,48,35,27,22,0,0,0,35,41,43,33,17,-12,-12,-14,-14,-14,-14,-11,0,0,6,0,0,3,22]} 1. d4 {[%emt 0:00:05]} d5 {[%emt 0:00:07]} 2. c4 {[%emt 0:00:05]} e6 {[%emt 0:00:04]} 3. Nc3 {[%emt 0:00:05]} c5 {[%emt 0:00:03]} 4. cxd5 {[%emt 0:00:26]} exd5 {[%emt 0:00:09]} 5. Nf3 {[%emt 0:00:13]} Nf6 {[%emt 0:00:13]} 6. g3 {[%emt 0:00:19]} Nc6 {[%emt 0:00:13]} 7. Bg2 {[%emt 0:00:09]} cxd4 $1 {[%emt 0:00:18][%mdl 4] is now more promising than 7...Be7.} 8. Nxd4 {[%emt 0:02:44]} Bc5 {[%emt 0:00:07]} 9. Nb3 {[%emt 0:02:58]} Bb6 {[%emt 0:00:07] D33: Tarrasch Defence: 6 g3 sidelines.} 10. O-O {[%emt 0:05:01][%cal Oc1g5]} ({Much weaker is} 10. Bxd5 Nb4 11. Bf3 Qxd1+ 12. Kxd1 Bf5 $11) 10... d4 {[%emt 0:00:54]} 11. Na4 {[%emt 0:00:44]} O-O {[%emt 0:00:11][%cal Bh8f8,Bf8d8,Bd8d2][%mdl 32] White is slightly better.} 12. Nxb6 {[%emt 0:00:33]} axb6 {[%emt 0:00:10]} 13. Bxc6 {[%emt 0:04:53]} bxc6 {[%emt 0:00:03]} 14. Qxd4 {[%emt 0:00:02]} c5 {[%emt 0:02:26]} (14... Bh3 {is interesting.} 15. Rd1 Qe7 16. Bg5 Qxe2 17. Qh4 Qg4) 15. Qxd8 {[%emt 0:01:45]} Rxd8 {[%emt 0:00:10]} 16. Bg5 {[%emt 0:08:46]} Be6 {[%emt 0:05:20] [#]} 17. Nd2 $146 {[%emt 0:01:17] White is weak on the light squares. The position is equal.} ({Predecessor:} 17. Rfd1 Rxd1+ 18. Rxd1 Ne4 19. Rd8+ Rxd8 20. Bxd8 b5 21. Bb6 c4 22. Nd4 Bd7 23. f3 {½-½ Ibarra Jerez,J (2570)-Sarana,A (2685) Titled Tuesday intern op 15 Mar Late blitz 2022 (11)}) 17... h6 {[%emt 0:14:38]} ({But not} 17... Bxa2 18. Ne4 $14) 18. Bxf6 {[%emt 0:00:10]} Rxd2 {[%emt 0:00:05]} 19. Bc3 {[%emt 0:00:34]} Rxe2 {[%emt 0:00:09]} 20. a3 {[%emt 0:00:25]} g5 {[%emt 0:09:47]} 21. Rfe1 {[%emt 0:02:34]} Bc4 {[%emt 0:01:35]} 22. Rxe2 {[%emt 0:01:33]} Bxe2 {[%emt 0:00:04]} 23. f4 {[%emt 0:00:06]} Bf3 {[%emt 0:12:20] Weighted Error Value: White=0.05 (flawless) /Black=0.06 (flawless)} 1/2-1/2

[Event "10th Cherry Blossom Classic 2023"]
[Site "Dulles"]
[Date "2023.05.25"]
[Round "1.11"]
[White "Williams, Justus"]
[Black "Brady, Tyson"]
[Result "0-1"]
[ECO "E92"]
[WhiteElo "2396"]
[BlackElo "2092"]
[Annotator "TA"]
[PlyCount "94"]
[EventDate "2023.05.24"]
[EventType "swiss"]
[EventCountry "USA"]
[SourceTitle "playchess.com"]
[Source "ChessBase"]
[SourceQuality "1"]
[TimeControl "5400+30"]

{[%evp 21,93,1,31,20,18,20,36,0,47,54,34,18,44,37,37,34,37,43,45,38,46,18,20,0,0,0,0,-8,-8,-12,-15,-9,58,-44,0,0,0,-23,0,0,0,-39,-33,-243,-67,-76,-67,-67,-67,-85,-96,-781,-768,-2214,101,0,-37,-1646,-652,-964,-845,-914,-876,-909,-903,-2180,-2214,-1945,-1893,-1595,-1650,-29988,-29989,-29999]} 1. c4 {[%emt 0:00:10]} Nf6 {[%emt 0:00:03]} 2. Nc3 {[%emt 0:00:23]} g6 {[%emt 0:00:12]} 3. e4 {[%emt 0:00:55]} d6 {[%emt 0:00:06]} 4. d4 {[%emt 0:00:10]} Bg7 {[%emt 0:00:07]} 5. Be2 {[%emt 0:00:34]} O-O {[%emt 0:00:07]} 6. Nf3 {[%emt 0:00:27][%cal Bg1f3,Bf3e1,Be1d3][%mdl 32]} e5 {[%emt 0:00:13]} 7. d5 {[%emt 0:00:58]} a5 {[%emt 0:00:19]} 8. O-O {[%emt 0:02:18]} Na6 {[%emt 0:00:29]} 9. Bg5 {[%emt 0:00:45][%cal Bc1g5,Bg5h4,Bh4f2][%mdl 32]} h6 {[%emt 0:00:54]} 10. Bh4 {[%emt 0:01:36] 10.Bh4 scores better than 10.Be3.} Qe8 {[%emt 0:03:47]} 11. Ne1 {[%emt 0:05:16]} Nh7 {[%emt 0:07:56]} (11... g5 $5 12. Bg3 $8 Nxe4 13. Nxe4 f5 $11) 12. Nd3 {[%emt 0:03:18] E92: King's Indian: Classical: 6 Be2 e5: 7 dxe5, 7 Be3 and Petrosian System without 7...Nbd7.} f5 {[%emt 0:06:33]} 13. f3 {[%emt 0:01:39]} Bd7 {[%emt 0:02:01] [#]} 14. Kh1 $146 {[%emt 0:07:45][%cal Oc4c5] White is slightly better.} ({Predecessor:} 14. Bf2 b6 15. b3 Nf6 16. a3 Nc5 17. Nxc5 dxc5 18. d6 c6 19. Na4 Rb8 20. Qc2 fxe4 21. fxe4 {1-0 Legky,N (2480)-Bergez,L (2380) Paris Apsap op 1998}) 14... Bf6 {[%emt 0:09:30]} (14... Nf6 $11 {was preferrable.}) 15. Bf2 $14 {[%emt 0:01:22]} b6 {[%emt 0:04:27]} 16. b3 {[%emt 0:03:18]} Ng5 {[%emt 0:05:49]} 17. a3 {[%emt 0:06:38]} Nc5 {[%emt 0:00:35]} 18. Nxc5 {[%emt 0:03:15]} bxc5 {[%emt 0:00:43]} 19. Qc2 {[%emt 0:00:49]} fxe4 {[%emt 0:02:40]} 20. fxe4 {[%emt 0:00:41]} Qe7 {[%emt 0:03:56]} 21. Rab1 {[%emt 0:02:30]} Nh7 {[%emt 0:05:30]} 22. b4 {[%emt 0:04:46]} axb4 {[%emt 0:00:06]} 23. axb4 {[%emt 0:00:08]} cxb4 {[%emt 0:00:24]} 24. Rxb4 {[%emt 0:01:10]} Bh4 {[%emt 0:01:17]} 25. Bg1 {[%emt 0:01:57][%cal Oc4c5]} Rxf1 {[%emt 0:01:39]} 26. Bxf1 {[%emt 0:00:03]} Rf8 {[%emt 0:01:49]} (26... Be1 $11) 27. Bd3 {[%emt 0:51:09]} (27. Rb1 $14) 27... Nf6 {[%emt 0:05:32]} (27... Be1 $5 {[%cal Re7h4]}) 28. c5 {[%emt 0:00:00]} Nh5 {[%emt 0:06:03][%cal Oh5g3]} 29. Ne2 {[%emt 0:00:00] Prevents Ng3+.} Qf6 {[%emt 0:03:31][%cal Od7h3] ...Bh3! is the strong threat.} (29... Bf2 $5 {[%cal Re7h4]} 30. Rb1 Qh4 31. cxd6 cxd6 $11) 30. Rb1 {[%emt 0:00:00]} Bg4 {[%emt 0:08:31]} 31. Bc4 {[%emt 0:00:00]} Bf2 {[%emt 0:05:46] Threatens to win with ...Qh4.} 32. Qc1 $2 {[%emt 0:00:00] [#]} (32. Rf1 $15 Qh4 33. cxd6 cxd6 34. Bxf2 Rxf2 35. Rxf2 Qxf2 36. Bd3) 32... Qh4 $2 {[%emt 0:02:28]} (32... Bf3 $1 $19 {[%cal Rf3g2]} 33. Qf1 (33. Bxf2 Bxg2+ {[%mdl 64] Discovered Attack, Decoy} 34. Kxg2 Qxf2+ 35. Kh1 Qf3+ 36. Kg1 Qg4+ 37. Kh1 Qxe4+ 38. Kg1 Qg4+ 39. Kh1 Qf3+ 40. Kg1 Nf4 $19) 33... Bxe4 34. Bxf2 Bxb1 35. cxd6 Qxd6) 33. Bxf2 $15 {[%emt 0:00:00]} Rxf2 {[%emt 0:01:35]} 34. cxd6 $1 {[%emt 0:00:00]} cxd6 {[%emt 0:06:40]} 35. Rb8+ {[%emt 0:00:00]} Kg7 {[%emt 0:00:21] Black is more active.} 36. Rb7+ $2 {[%emt 0:00:00][%mdl 8192] [#]} (36. Rb3 $17) 36... Kf6 $1 $19 {[%emt 0:02:12]} 37. Nc3 {[%emt 0:04:15]} Ng3+ $2 {[%emt 0:02:50]} ({Black should play} 37... Bf3 $19 {( -> ...Ng3+)} 38. Bf1 Qh3 39. Rb2 Bxg2+ {[%mdl 64] Double Attack} 40. Kg1 Rxf1+ 41. Qxf1+ Bxf1 42. Nd1 Qg4+ 43. Kf2 Qxd1 44. h3 Qd4+ 45. Kxf1 Qxb2 46. Ke1 Nf4 47. Kd1 Qe2+ 48. Kc1 Nd3+ 49. Kb1 Qb2#) 38. Kg1 $15 {[%emt 0:00:03]} Bf3 $40 {[%emt 0:00:26][%csl Gf3][%cal Rf2g2][%mdl 192] Double Attack. Black is up to no good. Some like it hot} 39. Kxf2 {[%emt 0:01:09][%mdl 8192]} (39. Rb2 $15 Rxb2 40. Qxb2 Nxe4 41. Nxe4+ (41. gxf3 Qe1+ 42. Kg2 Qxc3 $19) 41... Qxe4 42. Qb4 Bxg2 43. Qxd6+ Kg5 44. Bd3 Qxd3 45. Kxg2 (45. Qxe5+ $2 {loses.} Qf5 $19) 45... Qe4+ 46. Kf2) 39... Ne2+ {[%emt 0:00:21]} (39... Bxe4 40. hxg3 Qg4 41. Qxh6) (39... Nh1+ $142 40. Ke3 Qf4+ 41. Kd3 Qxc1 42. gxf3 Nf2+ 43. Ke2 Nh3) 40. Kxf3 {[%emt 0:00:31]} Nxc1 {[%emt 0:00:09][%csl Ge5][%cal Rh4f4]} 41. g3 {[%emt 0:00:08] Inhibits Qf4+.} Qxh2 {[%emt 0:00:28] Hoping for ...Qc2.} 42. Nb5 {[%emt 0:00:33]} Qh1+ {[%emt 0:01:02]} 43. Ke3 {[%emt 0:00:20]} Qe1+ {[%emt 0:00:29]} 44. Kf3 {[%emt 0:00:02]} Qd1+ {[%emt 0:00:40]} 45. Ke3 {[%emt 0:00:10]} Kg5 {[%emt 0:01:31]} 46. Nxd6 {[%emt 0:01:46]} Kg4 {[%emt 0:00:15][%csl Ge5][%cal Rd1d4]} 47. Be2+ {[%emt 0:00:29]} Qxe2# {[%emt 0:00:57] A cool game by Brady.   Weighted Error Value: White=1.17/Black=0.52} 0-1